fUSD/lending_fUSD_20240814
["ID","MTS","AMOUNT","RATE_DAILY","PERIOD"]
[334868622,1723620642982,-616.70141099,0.00013698,2]
[334868623,1723620642991,-500.0,0.00013698,2]
[334868624,1723620643000,-208.88894195,0.00013698,2]
[334868625,1723620643009,-500.0,0.00013698,2]
[334868626,1723620643019,-500.0,0.00013698,2]
[334868627,1723620643027,-500.0,0.00013698,2]
[334868628,1723620643037,-1238.47,0.00013698,2]
[334868629,1723620643046,-500.0,0.00013698,2]
[334868630,1723620643057,-500.0,0.00013698,2]
[334868631,1723620643067,-500.0,0.00013698,2]
[334868632,1723620643077,-500.0,0.00013698,2]
[334868633,1723620643086,-500.0,0.00013698,2]
[334868634,1723620643095,-500.0,0.00013698,2]
[334868635,1723620643104,-579.57,0.00013698,2]
[334868636,1723620643113,-500.0,0.00013698,2]
[334868637,1723620643123,-500.0,0.00013698,2]
[334868638,1723620643133,-500.0,0.00013698,2]
[334868639,1723620643142,-500.0,0.00013698,2]
[334868640,1723620643151,-500.0,0.00013698,2]
[334868641,1723620643161,-500.0,0.00013698,2]
[334868642,1723620643170,-1335.33,0.00013698,2]
[334868643,1723620643180,-829.86,0.00013698,2]
[334868644,1723620643190,-500.0,0.00013698,2]
[334868645,1723620643200,-594.0,0.00013698,2]
[334868646,1723620643209,-500.0,0.00013698,2]
[334868647,1723620643218,-544.43,0.00013698,2]
[334868648,1723620643227,-500.0,0.00013698,2]
[334868649,1723620643237,-500.0,0.00013698,2]
[334868650,1723620643247,-500.0,0.00013698,2]
[334868651,1723620643256,-500.0,0.00013698,2]
[334868652,1723620643265,-660.36,0.00013698,2]
[334868653,1723620643275,-500.0,0.00013698,2]
[334868654,1723620643284,-500.0,0.00013698,2]
[334868655,1723620643294,-500.0,0.00013698,2]
[334868656,1723620643303,-500.0,0.00013698,2]
[334868657,1723620643313,-500.0,0.00013698,2]
[334868658,1723620643324,-500.0,0.00013698,2]
[334868659,1723620643334,-1025.59,0.00013698,2]
[334868660,1723620643344,-500.0,0.00013698,2]
[334868661,1723620643354,-500.0,0.00013698,2]
[334868662,1723620643363,-500.0,0.00013698,2]
[334868663,1723620643373,-424.02516022,0.00013698,2]
[334868664,1723620643383,-500.0,0.00013698,2]
[334868665,1723620643392,-500.0,0.00013698,2]
[334868666,1723620643401,-500.0,0.00013698,2]
[334868667,1723620643411,-975.8,0.00013698,2]
[334868668,1723620643423,-500.0,0.00013698,2]
[334868669,1723620643432,-500.0,0.00013698,2]
[334868670,1723620643441,-500.0,0.00013698,2]
[334868671,1723620643451,-500.0,0.00013698,2]
[334868672,1723620643461,-500.0,0.00013698,2]
[334868673,1723620643470,-516.14,0.00013698,2]
[334868674,1723620643480,-500.0,0.00013698,2]
[334868675,1723620643490,-500.0,0.00013698,2]
[334868677,1723620643500,-500.0,0.00013698,2]
[334868678,1723620643510,-439.33395503,0.00013698,2]
[334868679,1723620643520,-500.0,0.00013698,2]
[334868680,1723620643530,-500.0,0.00013698,2]
[334868681,1723620643540,-537.52,0.00013698,2]
[334868682,1723620643550,-500.0,0.00013698,2]
[334868683,1723620643559,-500.0,0.00013698,2]
[334868684,1723620643569,-500.0,0.00013698,2]
[334868685,1723620643579,-500.0,0.00013698,2]
[334868686,1723620643589,-500.0,0.00013698,2]
[334868687,1723620643599,-500.0,0.00013698,2]
[334868689,1723620643608,-500.0,0.00013698,2]
[334868690,1723620643618,-500.0,0.00013698,2]
[334868691,1723620643628,-351.92218336,0.00013698,2]
[334868692,1723620643638,-500.0,0.00013698,2]
[334868693,1723620643647,-500.0,0.00013698,2]
[334868694,1723620643657,-500.0,0.00013698,2]
[334868695,1723620643666,-500.0,0.00013698,2]
[334868696,1723620643676,-500.0,0.00013698,2]
[334868697,1723620643686,-500.0,0.00013698,2]
[334868698,1723620643695,-500.0,0.00013698,2]
[334868699,1723620643705,-500.0,0.00013698,2]
[334868700,1723620643715,-500.0,0.00013698,2]
[334868701,1723620643725,-500.0,0.00013698,2]
[334868702,1723620643735,-617.54,0.00013698,2]
[334868703,1723620643744,-1108.96,0.00013698,2]
[334868704,1723620643755,-185.46195368,0.00013698,2]
[334868705,1723620643765,-643.5,0.00013698,2]
[334868706,1723620643775,-593.99088607,0.00013698,2]
[334868707,1723620643785,-528.17264269,0.00013698,2]
[334868708,1723620643795,-500.0,0.00013698,2]
[334868709,1723620643805,-500.0,0.00013698,2]
[334868710,1723620643815,-500.0,0.00013698,2]
[334868711,1723620643824,-500.0,0.00013698,2]
[334868712,1723620643835,-721.48,0.00013698,2]
[334868713,1723620643844,-500.0,0.00013698,2]
[334868714,1723620643853,-500.0,0.00013698,2]
[334868715,1723620643863,-500.0,0.00013698,2]
[334868716,1723620643872,-500.0,0.00013698,2]
[334868717,1723620643882,-500.0,0.00013698,2]
[334868718,1723620643892,-473.3147673,0.00013698,2]
[334868719,1723620643901,-500.0,0.00013698,2]
[334868720,1723620643910,-500.0,0.00013698,2]
[334868721,1723620643920,-500.0,0.00013698,2]
[334868722,1723620643930,-500.0,0.00013698,2]
[334868723,1723620643939,-500.0,0.00013698,2]
[334868724,1723620643949,-298.59984012,0.00013698,2]
[334868725,1723620643959,-951.16,0.00013698,2]
[334868726,1723620643970,-500.0,0.00013698,2]
[334868727,1723620643979,-500.0,0.00013698,2]
[334868728,1723620643989,-500.0,0.00013698,2]
[334868729,1723620643999,-500.0,0.00013698,2]
[334868730,1723620644008,-500.0,0.00013698,2]
[334868731,1723620644018,-500.0,0.00013698,2]
[334868732,1723620644028,-500.0,0.00013698,2]
[334868733,1723620644038,-500.0,0.00013698,2]
[334868734,1723620644048,-500.0,0.00013698,2]
[334868735,1723620644061,-500.0,0.00013698,2]
[334868736,1723620644071,-500.0,0.00013698,2]
[334868737,1723620644082,-500.0,0.00013698,2]
[334868738,1723620644091,-500.0,0.00013698,2]
[334868739,1723620644101,-500.0,0.00013698,2]
[334868740,1723620644110,-500.0,0.00013698,2]
[334868741,1723620644120,-500.0,0.00013698,2]
[334868742,1723620644130,-500.0,0.00013698,2]
[334868743,1723620644140,-500.0,0.00013698,2]
[334868744,1723620644149,-512.89,0.00013698,2]
[334868745,1723620644159,-500.0,0.00013698,2]
[334868746,1723620644168,-500.0,0.00013698,2]
[334868747,1723620644178,-500.0,0.00013698,2]
[334868748,1723620644187,-517.4,0.00013698,2]
[334868749,1723620644196,-500.0,0.00013698,2]
[334868750,1723620644206,-500.0,0.00013698,2]
[334868751,1723620644216,-501.66952166,0.00013698,2]
[334868752,1723620644225,-500.0,0.00013698,2]
[334868753,1723620644235,-500.0,0.00013698,2]
[334868754,1723620644245,-500.0,0.00013698,2]
[334868755,1723620644255,-1099.42,0.00013698,2]
[334868756,1723620644264,-500.0,0.00013698,2]
[334868757,1723620644274,-500.0,0.00013698,2]
[334868758,1723620644284,-500.0,0.00013698,2]
[334868759,1723620644293,-554.55,0.00013698,2]
[334868760,1723620644303,-500.0,0.00013698,2]
[334868761,1723620644313,-500.0,0.00013698,2]
[334868762,1723620644322,-500.0,0.00013698,2]
[334868763,1723620644333,-500.0,0.00013698,2]
[334868764,1723620644344,-158.94684902,0.00013698,2]
[334868765,1723620644353,-500.0,0.00013698,2]
[334868766,1723620644363,-263.10883345,0.00013698,2]
[334868767,1723620644374,-500.0,0.00013698,2]
[334868768,1723620644383,-500.0,0.00013698,2]
[334868769,1723620644393,-198.49790006,0.00013698,2]
[334868770,1723620644403,-572.8848016,0.00013698,2]
[334868771,1723620644415,-500.0,0.00013698,2]
[334868772,1723620644425,-500.0,0.00013698,2]
[334868773,1723620644434,-720.96,0.00013698,2]
[334868774,1723620644444,-545.17,0.00013698,2]
[334868775,1723620644454,-500.0,0.00013698,2]
[334868776,1723620644464,-381.52,0.00013698,2]
[334868777,1723620644473,-498.96673427,0.00013698,2]
[334868778,1723620644483,-500.0,0.00013698,2]
[334868779,1723620644492,-500.0,0.00013698,2]
[334868780,1723620644502,-500.0,0.00013698,2]
[334868781,1723620644511,-502.3,0.00013698,2]
[334868782,1723620644521,-500.0,0.00013698,2]
[334868783,1723620644531,-500.0,0.00013698,2]
[334868784,1723620644540,-500.0,0.00013698,2]
[334868785,1723620644550,-498.7622998,0.00013698,2]
[334868786,1723620644560,-500.0,0.00013698,2]
[334868787,1723620644569,-500.0,0.00013698,2]
[334868788,1723620644579,-500.0,0.00013698,2]
[334868789,1723620644588,-500.0,0.00013698,2]
[334868790,1723620644598,-167.69033271,0.00013698,2]
[334868791,1723620644607,-500.0,0.00013698,2]
[334868792,1723620644616,-500.0,0.00013698,2]
[334868793,1723620644626,-416.6,0.00013698,2]
[334868794,1723620644636,-500.0,0.00013698,2]
[334868795,1723620644646,-500.0,0.00013698,2]
[334868796,1723620644656,-500.0,0.00013698,2]
[334868797,1723620644665,-500.0,0.00013698,2]
[334868798,1723620644675,-500.0,0.00013698,2]
[334868799,1723620644684,-500.0,0.00013698,2]
[334868800,1723620644694,-500.0,0.00013698,2]
[334868801,1723620644704,-500.0,0.00013698,2]
[334868802,1723620644883,-273.185,0.00013698,2]
[334868803,1723620644895,-500.0,0.00013698,2]
[334868804,1723620644905,-500.0,0.00013698,2]
[334868805,1723620644914,-500.0,0.00013698,2]
[334868806,1723620644924,-500.0,0.00013698,2]
[334868807,1723620644934,-500.0,0.00013698,2]
[334868808,1723620644944,-500.0,0.00013698,2]
[334868809,1723620644953,-500.0,0.00013698,2]
[334868810,1723620644963,-500.0,0.00013698,2]
[334868811,1723620644972,-315.25075076,0.00013698,2]
[334868812,1723620644982,-500.0,0.00013698,2]
[334868813,1723620644992,-500.0,0.00013698,2]
[334868814,1723620645003,-500.0,0.00013698,2]
[334868815,1723620645013,-500.0,0.00013698,2]
[334868816,1723620645023,-500.0,0.00013698,2]
[334868817,1723620645033,-628.40970782,0.00013698,2]
[334868818,1723620645043,-500.0,0.00013698,2]
[334868819,1723620645053,-500.0,0.00013698,2]
[334868820,1723620645064,-500.0,0.00013698,2]
[334868821,1723620645074,-500.0,0.00013698,2]
[334868822,1723620645084,-500.0,0.00013698,2]
[334868823,1723620645093,-862.74,0.00013698,2]
[334868824,1723620645103,-500.0,0.00013698,2]
[334868825,1723620645112,-500.0,0.00013698,2]
[334868826,1723620645122,-500.0,0.00013698,2]
[334868827,1723620645132,-500.0,0.00013698,2]
[334868828,1723620645142,-500.0,0.00013698,2]
[334868829,1723620645151,-552.06,0.00013698,2]
[334868830,1723620645161,-500.0,0.00013698,2]
[334868831,1723620645171,-262.97541588,0.00013698,2]
[334868832,1723620645181,-500.0,0.00013698,2]
[334868833,1723620645190,-317.16743135,0.00013698,2]
[334868834,1723620645200,-500.0,0.00013698,2]
[334868835,1723620645210,-500.0,0.00013698,2]
[334868836,1723620645220,-648.18,0.00013698,2]
[334868837,1723620645230,-860.96,0.00013698,2]
[334868838,1723620645239,-500.0,0.00013698,2]
[334868839,1723620645249,-500.0,0.00013698,2]
[334868840,1723620645259,-1377.93,0.00013698,2]
[334868841,1723620645269,-500.0,0.00013698,2]
[334868842,1723620645279,-500.0,0.00013698,2]
[334868843,1723620645288,-250.50536749,0.00013698,2]
[334868844,1723620645298,-1553.5,0.00013698,2]
[334868845,1723620645308,-500.0,0.00013698,2]
[334868846,1723620645317,-500.0,0.00013698,2]
[334868847,1723620645327,-875.79,0.00013698,2]
[334868848,1723620645338,-500.0,0.00013698,2]
[334868849,1723620645348,-500.0,0.00013698,2]
[334868850,1723620645358,-500.0,0.00013698,2]
[334868851,1723620645368,-500.0,0.00013698,2]
[334868852,1723620645378,-500.0,0.00013698,2]
[334868853,1723620645387,-500.0,0.00013698,2]
[334868854,1723620645397,-517.31,0.00013698,2]
[334868855,1723620645410,-500.0,0.00013698,2]
[334868856,1723620645423,-500.0,0.00013698,2]
[334868857,1723620645433,-802.23,0.00013698,2]
[334868858,1723620645443,-500.0,0.00013698,2]
[334868859,1723620645452,-577.94,0.00013698,2]
[334868860,1723620645462,-500.0,0.00013698,2]
[334868861,1723620645472,-500.0,0.00013698,2]
[334868862,1723620645482,-557.73,0.00013698,2]
[334868863,1723620645493,-500.0,0.00013698,2]
[334868864,1723620645502,-500.0,0.00013698,2]
[334868865,1723620645512,-500.0,0.00013698,2]
[334868866,1723620645523,-500.0,0.00013698,2]
[334868867,1723620645532,-500.0,0.00013698,2]
[334868868,1723620645542,-575.4,0.00013698,2]
[334868869,1723620645551,-603.71,0.00013698,2]
[334868870,1723620645560,-500.0,0.00013698,2]
[334868871,1723620645570,-583.2,0.00013698,2]
[334868872,1723620645580,-500.0,0.00013698,2]
[334868873,1723620645590,-659.68,0.00013698,2]
[334868874,1723620645600,-500.0,0.00013698,2]
[334868875,1723620645611,-500.0,0.00013698,2]
[334868876,1723620645620,-642.09275345,0.00013698,2]
[334868877,1723620645631,-501.07,0.00013698,2]
[334868878,1723620645640,-500.0,0.00013698,2]
[334868879,1723620645650,-500.0,0.00013698,2]
[334868880,1723620645660,-500.0,0.00013698,2]
[334868881,1723620645670,-500.0,0.00013698,2]
[334868882,1723620645679,-509.16,0.00013698,2]
[334868883,1723620645689,-500.0,0.00013698,2]
[334868884,1723620645699,-642.16,0.00013698,2]
[334868885,1723620645708,-542.76,0.00013698,2]
[334868886,1723620645718,-500.0,0.00013698,2]
[334868887,1723620645728,-500.0,0.00013698,2]
[334868888,1723620645737,-500.0,0.00013698,2]
[334868889,1723620645747,-500.0,0.00013698,2]
[334868890,1723620645757,-714.09,0.00013698,2]
[334868891,1723620645766,-500.0,0.00013698,2]
[334868892,1723620645776,-500.0,0.00013698,2]
[334868893,1723620645786,-1105.55,0.00013698,2]
[334868894,1723620645796,-646.97,0.00013698,2]
[334868895,1723620645805,-1302.61,0.00013698,2]
[334868896,1723620645815,-4230.22,0.00013698,2]
[334868897,1723620645825,-500.0,0.00013698,2]
[334868898,1723620645835,-500.0,0.00013698,2]
[334868899,1723620645844,-500.0,0.00013698,2]
[334868900,1723620645854,-1927.63,0.00013698,2]
[334868901,1723620645863,-538.83,0.00013698,2]
[334868902,1723620645872,-500.0,0.00013698,2]
[334868903,1723620645882,-3771.24,0.00013698,2]
[334868904,1723620645891,-500.0,0.00013698,2]
[334868905,1723620645901,-369.89356971,0.00013698,2]
[334868906,1723620645910,-500.0,0.00013698,2]
[334868907,1723620645919,-2583.53,0.00013698,2]
[334868908,1723620645929,-500.0,0.00013698,2]
[334868909,1723620645938,-589.05,0.00013698,2]
[334868910,1723620645947,-500.0,0.00013698,2]
[334868911,1723620645959,-638.08,0.00013698,2]
[334868912,1723620645968,-705.12,0.00013698,2]
[334868913,1723620645978,-500.0,0.00013698,2]
[334868914,1723620645988,-500.0,0.00013698,2]
[334868915,1723620645997,-1567.35,0.00013698,2]
[334868916,1723620646006,-2757.25,0.00013698,2]
[334868917,1723620646015,-500.0,0.00013698,2]
[334868918,1723620646025,-642.62,0.00013698,2]
[334868919,1723620646034,-5777.23,0.00013698,2]
[334868921,1723620646043,-12612.61,0.00013698,2]
[334868923,1723620646052,-500.0,0.00013698,2]
[334868925,1723620646062,-500.0,0.00013698,2]
[334868927,1723620646071,-500.0,0.00013698,2]
[334868929,1723620646081,-500.0,0.00013698,2]
[334868931,1723620646090,-724.19,0.00013698,2]
[334868933,1723620646099,-675.15,0.00013698,2]
[334868935,1723620646111,-2454.92,0.00013698,2]
[334868937,1723620646121,-3995.99,0.00013698,2]
[334868939,1723620646130,-1562.13,0.00013698,2]
[334868941,1723620646139,-699.56,0.00013698,2]
[334868943,1723620646148,-500.0,0.00013698,2]
[334868946,1723620646159,-500.0,0.00013698,2]
[334868947,1723620646168,-1021.09,0.00013698,2]
[334868950,1723620646178,-230.34843278,0.00013698,2]
[334868952,1723620646187,-708.56,0.00013698,2]
[334868954,1723620646196,-500.0,0.00013698,2]
[334868956,1723620646206,-716.38,0.00013698,2]
[334868957,1723620646215,-500.0,0.00013698,2]
[334868960,1723620646224,-1012.52,0.00013698,2]
[334868962,1723620646234,-500.0,0.00013698,2]
[334868963,1723620646243,-500.0,0.00013698,2]
[334868964,1723620646252,-500.0,0.00013698,2]
[334868965,1723620646262,-1574.06,0.00013698,2]
[334868966,1723620646272,-500.0,0.00013698,2]
[334868967,1723620646282,-650.58,0.00013698,2]
[334868968,1723620646292,-590.62,0.00013698,2]
[334868969,1723620646302,-4431.9,0.00013698,2]
[334868970,1723620646312,-777.75,0.00013698,2]
[334868971,1723620646321,-500.0,0.00013698,2]
[334868972,1723620646332,-500.0,0.00013698,2]
[334868973,1723620646341,-500.0,0.00013698,2]
[334868974,1723620646351,-500.0,0.00013698,2]
[334868975,1723620646360,-500.0,0.00013698,2]
[334868976,1723620646369,-626.17,0.00013698,2]
[334868977,1723620646378,-1296.7,0.00013698,2]
[334868978,1723620646387,-500.0,0.00013698,2]
[334868979,1723620646397,-3542.6,0.00013698,2]
[334868980,1723620646406,-35269.02,0.00013698,2]
[334868981,1723620646420,-561.92,0.00013698,2]
[334868982,1723620646429,-743.95,0.00013698,2]
[334868983,1723620646439,-3665.95,0.00013698,2]
[334868984,1723620646449,-763.73,0.00013698,2]
[334868985,1723620646460,-500.0,0.00013698,2]
[334868986,1723620646469,-500.0,0.00013698,2]
[334868987,1723620646479,-1584.45,0.00013698,2]
[334868988,1723620646490,-500.0,0.00013698,2]
[334868989,1723620646499,-849.11,0.00013698,2]
[334868990,1723620646508,-500.0,0.00013698,2]
[334868991,1723620646517,-500.0,0.00013698,2]
[334868992,1723620646527,-500.0,0.00013698,2]
[334868993,1723620646536,-3814.92,0.00013698,2]
[334868994,1723620646545,-977.72,0.00013698,2]
[334868995,1723620646555,-1423.61,0.00013698,2]
[334868996,1723620646564,-1036.45,0.00013698,2]
[334868997,1723620646573,-875.75,0.00013698,2]
[334868998,1723620646583,-1638.4,0.00013698,2]
[334868999,1723620646592,-3123.04,0.00013698,2]
[334869000,1723620646601,-500.0,0.00013698,2]
[334869001,1723620646610,-4390.31,0.00013698,2]
[334869002,1723620646619,-500.0,0.00013698,2]
[334869003,1723620646628,-500.0,0.00013698,2]
[334869004,1723620646638,-500.0,0.00013698,2]
[334869005,1723620646647,-500.0,0.00013698,2]
[334869006,1723620646656,-500.0,0.00013698,2]
[334869007,1723620646665,-1041.59,0.00013698,2]
[334869008,1723620646675,-500.0,0.00013698,2]
[334869009,1723620646684,-2253.8,0.00013698,2]
[334869010,1723620646693,-2098.0,0.00013698,2]
[334869011,1723620646703,-500.0,0.00013698,2]
[334869012,1723620646712,-500.0,0.00013698,2]
[334869013,1723620646721,-672.57,0.00013698,2]
[334869014,1723620646731,-1025.9,0.00013698,2]
[334869015,1723620646741,-500.0,0.00013698,2]
[334869016,1723620646750,-500.0,0.00013698,2]
[334869017,1723620646759,-500.0,0.00013698,2]
[334869018,1723620646768,-500.0,0.00013698,2]
[334869019,1723620646778,-500.0,0.00013698,2]
[334869020,1723620646788,-1015.73,0.00013698,2]
[334869021,1723620646798,-500.0,0.00013698,2]
[334869022,1723620646807,-1149.64,0.00013698,2]
[334869023,1723620646816,-500.0,0.00013698,2]
[334869024,1723620646826,-500.0,0.00013698,2]
[334869025,1723620646837,-500.0,0.00013698,2]
[334869026,1723620646846,-500.0,0.00013698,2]
[334869027,1723620646856,-1020.09,0.00013698,2]
[334869028,1723620646865,-500.0,0.00013698,2]
[334869029,1723620646874,-500.0,0.00013698,2]
[334869030,1723620646883,-637.53,0.00013698,2]
[334869031,1723620646893,-500.0,0.00013698,2]
[334869032,1723620646902,-500.0,0.00013698,2]
[334869033,1723620646911,-500.0,0.00013698,2]
[334869034,1723620646920,-500.0,0.00013698,2]
[334869035,1723620646929,-500.0,0.00013698,2]
[334869036,1723620646939,-500.0,0.00013698,2]
[334869037,1723620646948,-500.0,0.00013698,2]
[334869038,1723620646957,-598.95,0.00013698,2]
[334869039,1723620646966,-500.0,0.00013698,2]
[334869040,1723620646976,-3408.8,0.00013698,2]
[334869041,1723620646985,-500.0,0.00013698,2]
[334869042,1723620646994,-500.0,0.00013698,2]
[334869043,1723620647003,-1220.39,0.00013698,2]
[334869044,1723620647012,-500.0,0.00013698,2]
[334869045,1723620647021,-1069.4,0.00013698,2]
[334869046,1723620647030,-1069.4,0.00013698,2]
[334869047,1723620647039,-500.0,0.00013698,2]
[334869048,1723620647049,-1069.4,0.00013698,2]
[334869049,1723620647058,-500.0,0.00013698,2]
[334869050,1723620647067,-828.63,0.00013698,2]
[334869051,1723620647076,-1276.97,0.00013698,2]
[334869052,1723620647086,-5042.49,0.00013698,2]
[334869053,1723620647095,-500.0,0.00013698,2]
[334869054,1723620647105,-500.0,0.00013698,2]
[334869055,1723620647115,-648.84,0.00013698,2]
[334869056,1723620647126,-849.43,0.00013698,2]
[334869057,1723620647136,-500.0,0.00013698,2]
[334869058,1723620647145,-1088.84,0.00013698,2]
[334869059,1723620647155,-697.5,0.00013698,2]
[334869060,1723620647164,-500.0,0.00013698,2]
[334869061,1723620647173,-500.0,0.00013698,2]
[334869062,1723620647182,-1178.52,0.00013698,2]
[334869063,1723620647191,-500.0,0.00013698,2]
[334869064,1723620647201,-690.09,0.00013698,2]
[334869065,1723620647210,-618.66,0.00013698,2]
[334869066,1723620647220,-866.59,0.00013698,2]
[334869067,1723620647229,-500.0,0.00013698,2]
[334869068,1723620647239,-2098.19,0.00013698,2]
[334869069,1723620647248,-500.0,0.00013698,2]
[334869070,1723620647257,-500.0,0.00013698,2]
[334869071,1723620647266,-1862.93,0.00013698,2]
[334869072,1723620647325,-536.05,0.00013698,2]
[334869073,1723620647334,-1026.42,0.00013698,2]
[334869074,1723620647343,-500.0,0.00013698,2]
[334869075,1723620647352,-770.83,0.00013698,2]
[334869076,1723620647361,-500.0,0.00013698,2]
[334869077,1723620647370,-500.0,0.00013698,2]
[334869078,1723620647379,-2022.99,0.00013698,2]
[334869079,1723620647388,-926.67,0.00013698,2]
[334869080,1723620647397,-1308.09,0.00013698,2]
[334869081,1723620647406,-500.0,0.00013698,2]
[334869082,1723620647417,-707.31,0.00013698,2]
[334869083,1723620647426,-500.0,0.00013698,2]
[334869084,1723620647435,-1018.12,0.00013698,2]
[334869085,1723620647444,-500.0,0.00013698,2]
[334869086,1723620647454,-1029.55,0.00013698,2]
[334869087,1723620647464,-500.0,0.00013698,2]
[334869088,1723620647472,-554.63,0.00013698,2]
[334869089,1723620647482,-500.0,0.00013698,2]
[334869090,1723620647493,-500.0,0.00013698,2]
[334869091,1723620647503,-500.0,0.00013698,2]
[334869092,1723620647512,-500.0,0.00013698,2]
[334869093,1723620647521,-500.0,0.00013698,2]
[334869094,1723620647530,-500.0,0.00013698,2]
[334869095,1723620647539,-500.0,0.00013698,2]
[334869096,1723620647548,-500.0,0.00013698,2]
[334869097,1723620647557,-1038.94,0.00013698,2]
[334869098,1723620647567,-853.95,0.00013698,2]
[334869099,1723620647576,-500.0,0.00013698,2]
[334869100,1723620647585,-500.0,0.00013698,2]
[334869101,1723620647594,-500.0,0.00013698,2]
[334869102,1723620647603,-500.0,0.00013698,2]
[334869103,1723620647612,-500.0,0.00013698,2]
[334869104,1723620647622,-500.0,0.00013698,2]
[334869105,1723620647631,-500.0,0.00013698,2]
[334869106,1723620647640,-500.0,0.00013698,2]
[334869107,1723620647650,-500.0,0.00013698,2]
[334869108,1723620647659,-500.0,0.00013698,2]
[334869109,1723620647668,-500.0,0.00013698,2]
[334869110,1723620647677,-500.0,0.00013698,2]
[334869111,1723620647686,-1710.08,0.00013698,2]
[334869112,1723620647695,-500.0,0.00013698,2]
[334869113,1723620647704,-691.25,0.00013698,2]
[334869114,1723620647713,-500.0,0.00013698,2]
[334869115,1723620647722,-500.0,0.00013698,2]
[334869116,1723620647731,-500.0,0.00013698,2]
[334869117,1723620647740,-1036.3,0.00013698,2]
[334869118,1723620647749,-1094.21,0.00013698,2]
[334869119,1723620647759,-500.0,0.00013698,2]
[334869120,1723620647767,-198.29364045,0.00013698,2]
[334869121,1723620647776,-1184.35,0.00013698,2]
[334869122,1723620647786,-500.0,0.00013698,2]
[334869123,1723620647795,-500.0,0.00013698,2]
[334869124,1723620647804,-500.0,0.00013698,2]
[334869125,1723620647813,-166.29661664,0.00013698,2]
[334869126,1723620647822,-500.0,0.00013698,2]
[334869127,1723620647831,-500.0,0.00013698,2]
[334869128,1723620647841,-664.34,0.00013698,2]
[334869129,1723620647850,-500.0,0.00013698,2]
[334869130,1723620647861,-556.8,0.00013698,2]
[334869131,1723620647870,-1873.52,0.00013698,2]
[334869132,1723620647879,-500.0,0.00013698,2]
[334869133,1723620647888,-500.0,0.00013698,2]
[334869134,1723620647897,-500.0,0.00013698,2]
[334869135,1723620647906,-975.68,0.00013698,2]
[334869136,1723620647915,-500.0,0.00013698,2]
[334869137,1723620647925,-1573.93,0.00013698,2]
[334869138,1723620647934,-3644.0,0.00013698,2]
[334869139,1723620647943,-500.0,0.00013698,2]
[334869140,1723620647953,-500.0,0.00013698,2]
[334869141,1723620647962,-500.0,0.00013698,2]
[334869142,1723620647972,-500.0,0.00013698,2]
[334869143,1723620647981,-1757.08,0.00013698,2]
[334869144,1723620647990,-500.0,0.00013698,2]
[334869145,1723620648000,-1512.55,0.00013698,2]